fUSD/lending_fUSD_20260529
["ID","MTS","AMOUNT","RATE_DAILY","PERIOD"]
[423382200,1780069846000,-775.63,0.00028767,30]
[423382193,1780069846000,-884.0,0.00028411,5]
[423382199,1780069846000,-152.0,0.00028746,7]
[423382195,1780069846000,-500.0,0.00028582,120]
[423382172,1780069846000,-208.11796255,0.0002839,7]
[423382187,1780069846000,-192.52922732,0.0002839,7]
[423382174,1780069846000,-209.49728112,0.0002839,7]
[423382157,1780069846000,-165.02368299,0.00028348,7]
[423382170,1780069846000,-161.66489576,0.0002839,7]
[423382197,1780069846000,-152.0,0.000287,7]
[423382144,1780069846000,-180.5540203,0.00028323,7]
[423382145,1780069846000,-168.59359607,0.00028323,7]
[423382146,1780069846000,-160.72817994,0.00028348,7]
[423382147,1780069846000,-169.410686,0.00028348,7]
[423382149,1780069846000,-198.02779519,0.00028348,7]
[423382148,1780069846000,-156.95430493,0.00028348,7]
[423382150,1780069846000,-157.21300299,0.00028348,7]
[423382151,1780069846000,-159.08763722,0.00028348,7]
[423382152,1780069846000,-162.03706712,0.00028348,7]
[423382153,1780069846000,-176.83064221,0.00028348,7]
[423382154,1780069846000,-154.0548147,0.00028348,7]
[423382171,1780069846000,-208.95327054,0.0002839,2]
[423382155,1780069846000,-156.05856573,0.00028348,7]
[423382158,1780069846000,-202.25494561,0.00028348,7]
[423382160,1780069846000,-205.55738274,0.00028348,7]
[423382162,1780069846000,-150.49798279,0.00028348,7]
[423382159,1780069846000,-197.14485582,0.00028348,7]
[423382161,1780069846000,-170.4118041,0.00028348,7]
[423382165,1780069846000,-300.0,0.00028369,30]
[423382163,1780069846000,-152.74726053,0.00028348,7]
[423382166,1780069846000,-152.28468194,0.00028371,7]
[423382167,1780069846000,-205.81059355,0.00028371,7]
[423382164,1780069846000,-1200.0,0.00028369,30]
[423382168,1780069846000,-374.5971301,0.00028371,7]
[423382169,1780069846000,-207.45988435,0.00028371,7]
[423382156,1780069846000,-187.75190103,0.00028348,7]
[423382196,1780069846000,-200.0,0.00028681,2]
[423382204,1780069846000,-152.0,0.00028792,7]
[423382202,1780069846000,-216.36883392,0.00028767,2]
[423382234,1780069846000,-858.82,0.00028995,2]
[423382236,1780069846000,-3238.66582057,0.00029,2]
[423382235,1780069846000,-7392.76790768,0.00029,2]
[423382237,1780069846000,-1000.0,0.00029,2]
[423382238,1780069846000,-200.0,0.00029,2]
[423382239,1780069846000,-200.0,0.00029,2]
[423382242,1780069846000,-200.0,0.00029,2]
[423382241,1780069846000,-200.0,0.00029,2]
[423382240,1780069846000,-200.0,0.00029,2]
[423382243,1780069846000,-200.0,0.00029,2]
[423382245,1780069846000,-200.0,0.00029,2]
[423382246,1780069846000,-200.0,0.00029,2]
[423382233,1780069846000,-858.82,0.00028991,7]
[423382247,1780069846000,-200.0,0.00029,2]
[423382254,1780069846000,-296.97,0.00029,2]
[423382244,1780069846000,-200.0,0.00029,2]
[423382248,1780069846000,-200.0,0.00029,2]
[423382250,1780069846000,-200.0,0.00029,2]
[423382256,1780069846000,-2500.0,0.00029,2]
[423382258,1780069846000,-1000.0,0.00029,2]
[423382260,1780069846000,-743.86583086,0.00029,2]
[423382262,1780069846000,-2383.13713031,0.00029,2]
[423382261,1780069846000,-669.65,0.00029,2]
[423382263,1780069846000,-2500.0,0.00029,2]
[423382264,1780069846000,-10000.0,0.00029,2]
[423382203,1780069846000,-1003.99,0.00028767,2]
[423382252,1780069846000,-200.0,0.00029,2]
[423382231,1780069846000,-858.82,0.00028983,2]
[423382265,1780069846000,-669.65,0.00029,2]
[423382230,1780069846000,-858.82,0.00028979,7]
[423382232,1780069846000,-858.82,0.00028987,30]
[423382205,1780069846000,-2396.45,0.000288,7]
[423382206,1780069846000,-1180.38,0.00028843,7]
[423382207,1780069846000,-152.0,0.00028852,7]
[423382210,1780069846000,-150.0,0.00028855,2]
[423382209,1780069846000,-150.0,0.00028855,2]
[423382211,1780069846000,-150.0,0.00028855,2]
[423382212,1780069846000,-150.0,0.00028855,2]
[423382208,1780069846000,-150.0,0.00028855,2]
[423382213,1780069846000,-4159.0,0.00028856,2]
[423382216,1780069846000,-150.0,0.00028897,2]
[423382214,1780069846000,-39579.5932863,0.00028857,2]
[423382215,1780069846000,-311251.8774489,0.00028857,2]
[423382201,1780069846000,-500.0,0.00028767,2]
[423382219,1780069846000,-200.0,0.000289,2]
[423382217,1780069846000,-50339.39,0.000289,14]
[423382229,1780069846000,-858.82,0.00028975,30]
[423382228,1780069846000,-858.82,0.00028971,2]
[423382227,1780069846000,-376.89212746,0.00028971,2]
[423382221,1780069846000,-301.0,0.000289,2]
[423382226,1780069846000,-167.00015065,0.00028971,2]
[423382224,1780069846000,-884.0,0.00028965,6]
[423382218,1780069846000,-200.0,0.000289,2]
[423382222,1780069846000,-284.47464731,0.00028923,2]
[423382225,1780069846000,-858.82,0.00028967,7]
[423382220,1780069846000,-200.0,0.000289,2]
[423382223,1780069846000,-858.82,0.00028963,30]
[423382325,1780069847000,-193.88359574,0.00029,2]
[423382317,1780069847000,-200.0,0.00029,2]
[423382328,1780069847000,-500.0,0.00029064,17]
[423382319,1780069847000,-669.65,0.00029,2]
[423382307,1780069847000,-157.0,0.00029,2]
[423382323,1780069847000,-858.89,0.00029,30]
[423382315,1780069847000,-1000.0,0.00029,2]
[423382311,1780069847000,-669.65,0.00029,2]
[423382309,1780069847000,-669.65,0.00029,2]
[423382313,1780069847000,-1000.0,0.00029,2]
[423382321,1780069847000,-1000.0,0.00029,2]
[423382334,1780069847000,-651.75,0.00029086,2]
[423382337,1780069847000,-651.75,0.00029086,2]
[423382331,1780069847000,-651.75,0.00029086,2]
[423382330,1780069847000,-651.75,0.00029086,7]
[423382332,1780069847000,-651.75,0.00029086,30]
[423382333,1780069847000,-651.75,0.00029086,7]
[423382335,1780069847000,-651.75,0.00029086,30]
[423382339,1780069847000,-250.0,0.00029093,2]
[423382338,1780069847000,-651.78,0.00029086,30]
[423382336,1780069847000,-651.75,0.00029086,7]
[423382341,1780069847000,-250.0,0.00029093,2]
[423382340,1780069847000,-250.0,0.00029093,2]
[423382305,1780069847000,-157.0,0.00029,2]
[423382329,1780069847000,-651.75,0.00029086,30]
[423382296,1780069847000,-157.0,0.00029,2]
[423382280,1780069847000,-156.0,0.00029,2]
[423382293,1780069847000,-157.0,0.00029,2]
[423382267,1780069847000,-1000.0,0.00029,2]
[423382269,1780069847000,-939.2970216,0.00029,2]
[423382268,1780069847000,-1115.94043199,0.00029,2]
[423382266,1780069847000,-11591.88,0.00029,2]
[423382270,1780069847000,-930.46485108,0.00029,2]
[423382272,1780069847000,-930.00116213,0.00029,2]
[423382271,1780069847000,-930.02324255,0.00029,2]
[423382274,1780069847000,-930.00000291,0.00029,2]
[423382277,1780069847000,-669.65,0.00029,2]
[423382279,1780069847000,-160.0,0.00029,2]
[423382276,1780069847000,-930.00000001,0.00029,2]
[423382275,1780069847000,-930.00000015,0.00029,2]
[423382273,1780069847000,-930.00005811,0.00029,2]
[423382278,1780069847000,-669.65,0.00029,2]
[423382282,1780069847000,-156.0,0.00029,2]
[423382284,1780069847000,-156.0,0.00029,2]
[423382288,1780069847000,-156.0,0.00029,2]
[423382286,1780069847000,-156.0,0.00029,2]
[423382300,1780069847000,-157.0,0.00029,2]
[423382295,1780069847000,-157.0,0.00029,2]
[423382291,1780069847000,-167.0,0.00029,2]
[423382304,1780069847000,-157.0,0.00029,2]
[423382289,1780069847000,-156.0,0.00029,2]
[423382302,1780069847000,-157.0,0.00029,2]
[423382298,1780069847000,-157.0,0.00029,2]
[423382294,1780069847000,-157.0,0.00029,2]
[423382343,1780069847000,-250.0,0.00029093,2]
[423382327,1780069847000,-316.92418714,0.00029,2]
[423382345,1780069847000,-250.0,0.00029093,2]
[423382372,1780069847000,-338.79,0.00029215,30]
[423382374,1780069847000,-166.66,0.00029251,2]
[423382371,1780069847000,-338.7,0.00029215,2]
[423382378,1780069847000,-396.99,0.00029355,7]
[423382379,1780069847000,-396.99,0.00029355,2]
[423382380,1780069847000,-396.99,0.00029355,30]
[423382381,1780069847000,-396.99,0.00029355,7]
[423382383,1780069847000,-396.99,0.00029355,30]
[423382385,1780069847000,-396.99,0.00029355,2]
[423382382,1780069847000,-396.99,0.00029355,2]
[423382387,1780069847000,-238.66,0.0002936,30]
[423382384,1780069847000,-396.99,0.00029355,7]
[423382389,1780069847000,-238.66,0.0002936,2]
[423382388,1780069847000,-238.66,0.0002936,7]
[423382386,1780069847000,-397.05,0.00029355,30]
[423382390,1780069847000,-238.66,0.0002936,30]
[423382391,1780069847000,-238.66,0.0002936,7]
[423382392,1780069847000,-238.66,0.0002936,2]
[423382394,1780069847000,-238.66,0.0002936,7]
[423382396,1780069847000,-238.7,0.0002936,30]
[423382395,1780069847000,-238.66,0.0002936,2]
[423382398,1780069847000,-335.87076658,0.000295,56]
[423382399,1780069847000,-335.87076658,0.000295,56]
[423382397,1780069847000,-2062.0,0.00029473,120]
[423382342,1780069847000,-250.0,0.00029093,2]
[423382375,1780069847000,-168.09,0.00029281,2]
[423382369,1780069847000,-338.7,0.00029215,30]
[423382393,1780069847000,-238.66,0.0002936,30]
[423382376,1780069847000,-2396.45,0.000293,7]
[423382373,1780069847000,-772.16,0.0002922,30]
[423382344,1780069847000,-250.0,0.00029093,2]
[423382353,1780069847000,-608.35,0.0002921,30]
[423382348,1780069847000,-200.04,0.000291,2]
[423382347,1780069847000,-336.0,0.00029093,2]
[423382350,1780069847000,-152.0,0.00029129,6]
[423382349,1780069847000,-402.83,0.000291,2]
[423382352,1780069847000,-200.0,0.000292,2]
[423382351,1780069847000,-3537.8,0.000292,7]
[423382355,1780069847000,-608.35,0.0002921,2]
[423382354,1780069847000,-608.35,0.0002921,7]
[423382365,1780069847000,-338.7,0.00029215,2]
[423382357,1780069847000,-608.35,0.0002921,7]
[423382346,1780069847000,-250.0,0.00029093,2]
[423382356,1780069847000,-608.35,0.0002921,30]
[423382358,1780069847000,-608.35,0.0002921,2]
[423382370,1780069847000,-338.7,0.00029215,7]
[423382367,1780069847000,-338.7,0.00029215,7]
[423382366,1780069847000,-338.7,0.00029215,30]
[423382362,1780069847000,-608.44,0.0002921,30]
[423382368,1780069847000,-338.7,0.00029215,2]
[423382363,1780069847000,-338.7,0.00029215,30]
[423382361,1780069847000,-608.35,0.0002921,2]
[423382359,1780069847000,-608.35,0.0002921,30]
[423382360,1780069847000,-608.35,0.0002921,7]
[423382364,1780069847000,-338.7,0.00029215,7]
[423382377,1780069847000,-396.99,0.00029355,30]
[423382423,1780069848000,-318.17527444,0.00029677,7]
[423382424,1780069848000,-174.11467666,0.00029677,7]
[423382436,1780069848000,-394.28971165,0.00029677,7]
[423382428,1780069848000,-308.1096294,0.00029677,7]
[423382427,1780069848000,-353.66128442,0.00029677,7]
[423382430,1780069848000,-200.21566514,0.00029677,7]
[423382434,1780069848000,-330.04736597,0.00029677,7]
[423382429,1780069848000,-242.27716993,0.00029677,7]
[423382431,1780069848000,-312.11713146,0.00029677,7]
[423382432,1780069848000,-375.50380206,0.00029677,7]
[423382442,1780069848000,-2184.58596145,0.00029682,2]
[423382433,1780069848000,-152.55379499,0.00029677,7]
[423382435,1780069848000,-404.50989122,0.00029677,7]
[423382439,1780069848000,-340.8236082,0.00029677,7]
[423382438,1780069848000,-241.13361198,0.00029677,7]
[423382440,1780069848000,-300.99596558,0.00029677,7]
[423382441,1780069848000,-305.49452106,0.00029677,7]
[423382443,1780069848000,-303.0,0.00029686,30]
[423382447,1780069848000,-902.0,0.00029686,30]
[423382421,1780069848000,-396.05559039,0.00029677,7]
[423382448,1780069848000,-506.0,0.00029699,30]
[423382437,1780069848000,-411.11476548,0.00029677,7]
[423382422,1780069848000,-314.42600597,0.00029677,7]
[423382410,1780069848000,-884.0,0.0002952,6]
[423382425,1780069848000,-324.07413425,0.00029677,7]
[423382444,1780069848000,-354.0,0.00029686,30]
[423382401,1780069848000,-637.93813284,0.000295,56]
[423382400,1780069848000,-637.93813284,0.000295,56]
[423382403,1780069848000,-698.92403439,0.000295,56]
[423382402,1780069848000,-698.92403439,0.000295,56]
[423382404,1780069848000,-712.39833518,0.000295,56]
[423382405,1780069848000,-200.0,0.000295,60]
[423382407,1780069848000,-184.0,0.000295,60]
[423382406,1780069848000,-200.0,0.000295,60]
[423382409,1780069848000,-339.37,0.00029517,30]
[423382412,1780069848000,-349.02290603,0.00029651,7]
[423382408,1780069848000,-552.82,0.00029512,30]
[423382411,1780069848000,-346.35115261,0.00029651,7]
[423382415,1780069848000,-337.18719215,0.00029651,7]
[423382414,1780069848000,-361.1080406,0.00029651,7]
[423382413,1780069848000,-426.02732709,0.00029651,7]
[423382416,1780069848000,-176.47010589,0.00029677,7]
[423382418,1780069848000,-338.82137199,0.00029677,7]
[423382417,1780069848000,-321.45635988,0.00029677,7]
[423382419,1780069848000,-313.90860986,0.00029677,7]
[423382420,1780069848000,-187.37709945,0.00029677,7]
[423382426,1780069848000,-195.09795569,0.00029677,7]
[423382446,1780069848000,-1418.0,0.00029686,30]
[423382445,1780069848000,-185.0,0.00029686,30]
[423382449,1780069848000,-430.0,0.00029699,30]
[423382478,1780069848000,-338.8064696,0.0002972,7]
[423382479,1780069848000,-359.09314955,0.0002972,7]
[423382480,1780069848000,-358.91680101,0.0002972,7]
[423382473,1780069848000,-317.52199663,0.0002972,7]
[423382477,1780069848000,-300.61712664,0.0002972,7]
[423382482,1780069848000,-231.85378954,0.0002972,7]
[423382484,1780069848000,-411.78775674,0.0002972,7]
[423382483,1780069848000,-151.12671918,0.0002972,7]
[423382487,1780069848000,-344.36092522,0.0002972,7]
[423382485,1780069848000,-180.66670105,0.0002972,5]
[423382481,1780069848000,-317.24563307,0.0002972,7]
[423382491,1780069848000,-413.5870651,0.0002972,5]
[423382489,1780069848000,-168.69000495,0.0002972,7]
[423382488,1780069848000,-306.88262031,0.0002972,7]
[423382490,1780069848000,-328.32139666,0.0002972,7]
[423382494,1780069848000,-157.11,0.00029808,2]
[423382493,1780069848000,-2396.45,0.000298,7]
[423382496,1780069848000,-157.11,0.00029808,30]
[423382495,1780069848000,-157.11,0.00029808,7]
[423382498,1780069848000,-157.11,0.00029808,7]
[423382497,1780069848000,-157.11,0.00029808,2]
[423382450,1780069848000,-1489.0,0.00029699,30]
[423382492,1780069848000,-382.23955748,0.0002972,7]
[423382476,1780069848000,-309.05424705,0.0002972,7]
[423382486,1780069848000,-385.05845463,0.0002972,7]
[423382475,1780069848000,-434.89067663,0.0002972,7]
[423382474,1780069848000,-220.18842306,0.0002972,7]
[423382452,1780069848000,-407.0,0.00029699,30]
[423382451,1780069848000,-364.0,0.00029699,30]
[423382453,1780069848000,-2407.0,0.00029699,30]
[423382455,1780069848000,-10294.3737,0.000297,2]
[423382454,1780069848000,-982.0,0.00029699,30]
[423382458,1780069848000,-1000.0,0.000297,7]
[423382457,1780069848000,-731.86,0.000297,7]
[423382459,1780069848000,-209.879676,0.000297,2]
[423382461,1780069848000,-174.47523396,0.00029701,7]
[423382460,1780069848000,-304.56936387,0.00029701,7]
[423382456,1780069848000,-50339.39,0.000297,14]
[423382468,1780069848000,-416.23592509,0.0002972,7]
[423382465,1780069848000,-414.91976869,0.00029701,7]
[423382464,1780069848000,-185.27180721,0.00029701,2]
[423382463,1780069848000,-749.19426019,0.00029701,7]
[423382466,1780069848000,-323.32979153,0.0002972,7]
[423382467,1780069848000,-417.90654109,0.0002972,2]
[423382469,1780069848000,-323.27604842,0.0002972,7]
[423382472,1780069848000,-310.93902489,0.0002972,7]
[423382470,1780069848000,-418.99456224,0.0002972,7]
[423382471,1780069848000,-382.3262067,0.0002972,7]
[423382462,1780069848000,-411.62118709,0.00029701,7]
[423382541,1780069849000,-157.99,0.00030004,30]
[423382530,1780069849000,-157.85,0.00030004,2]
[423382542,1780069849000,-884.0,0.00030075,7]
[423382537,1780069849000,-157.85,0.00030004,7]
[423382536,1780069849000,-157.85,0.00030004,2]
[423382533,1780069849000,-157.85,0.00030004,2]
[423382531,1780069849000,-157.85,0.00030004,7]
[423382535,1780069849000,-157.85,0.00030004,30]
[423382532,1780069849000,-157.85,0.00030004,30]
[423382534,1780069849000,-157.85,0.00030004,7]
[423382539,1780069849000,-157.85,0.00030004,2]
[423382540,1780069849000,-157.85,0.00030004,7]
[423382538,1780069849000,-157.85,0.00030004,30]
[423382549,1780069849000,-775.62999999,0.00030137,30]
[423382544,1780069849000,-1000.0,0.00030137,120]
[423382545,1780069849000,-959.03,0.00030137,2]
[423382547,1780069849000,-398.21415052,0.00030137,7]
[423382552,1780069849000,-935.04,0.000302,2]
[423382546,1780069849000,-199.10707526,0.00030137,7]
[423382551,1780069849000,-2000.0,0.000302,7]
[423382548,1780069849000,-186.41,0.00030137,43]
[423382554,1780069849000,-1180.38,0.0003029,7]
[423382557,1780069849000,-151.92,0.00030411,120]
[423382550,1780069849000,-500.0,0.00030194,120]
[423382556,1780069849000,-150.0,0.00030341,2]
[423382555,1780069849000,-2396.45,0.000303,7]
[423382527,1780069849000,-157.85,0.00030004,2]
[423382543,1780069849000,-166.66,0.00030104,2]
[423382525,1780069849000,-200.0,0.0003,2]
[423382505,1780069849000,-157.11,0.00029808,30]
[423382526,1780069849000,-200.0,0.0003,2]
[423382559,1780069849000,-50339.39,0.000305,14]
[423382501,1780069849000,-157.11,0.00029808,7]
[423382504,1780069849000,-157.11,0.00029808,7]
[423382499,1780069849000,-157.11,0.00029808,30]
[423382502,1780069849000,-157.11,0.00029808,30]
[423382500,1780069849000,-157.11,0.00029808,2]
[423382503,1780069849000,-157.11,0.00029808,2]
[423382507,1780069849000,-157.11,0.00029808,7]
[423382506,1780069849000,-157.11,0.00029808,2]
[423382508,1780069849000,-157.13,0.00029808,30]
[423382509,1780069849000,-400.0,0.0002993,2]
[423382513,1780069849000,-400.0,0.0002993,2]
[423382511,1780069849000,-400.0,0.0002993,2]
[423382516,1780069849000,-400.0,0.0002993,2]
[423382510,1780069849000,-400.0,0.0002993,2]
[423382515,1780069849000,-400.0,0.0002993,2]
[423382517,1780069849000,-483.0,0.0002993,2]
[423382514,1780069849000,-400.0,0.0002993,2]
[423382512,1780069849000,-400.0,0.0002993,2]
[423382518,1780069849000,-500.0,0.00029936,19]
[423382520,1780069849000,-1000.0,0.0003,2]
[423382529,1780069849000,-157.85,0.00030004,30]
[423382519,1780069849000,-172.0,0.0003,14]
[423382522,1780069849000,-200.0,0.0003,2]
[423382521,1780069849000,-400.0,0.0003,120]
[423382523,1780069849000,-200.0,0.0003,2]
[423382524,1780069849000,-200.0,0.0003,2]
[423382528,1780069849000,-157.85,0.00030004,7]
[423382560,1780069849000,-928.0,0.0003052,2]
[423382553,1780069849000,-2704.2,0.00030239,2]
[423382565,1780069849000,-1225.0,0.0003052,2]
[423382594,1780069849000,-162.21557078,0.00030563,7]
[423382604,1780069849000,-249.54806209,0.00030563,7]
[423382593,1780069849000,-154.4990258,0.00030563,7]
[423382595,1780069849000,-477.26291166,0.00030563,7]
[423382596,1780069849000,-348.22935332,0.00030563,7]
[423382599,1780069849000,-530.49192663,0.00030563,7]
[423382597,1780069849000,-486.11120137,0.00030563,7]
[423382598,1780069849000,-390.19591139,0.00030563,7]
[423382600,1780069849000,-159.42494355,0.00030563,7]
[423382602,1780069849000,-462.1644441,0.00030563,7]
[423382603,1780069849000,-201.40377158,0.00030563,7]
[423382601,1780069849000,-277.31540027,0.00030563,7]
[423382605,1780069849000,-484.55433987,0.00030563,7]
[423382606,1780069849000,-468.17569719,0.00030563,7]
[423382607,1780069849000,-400.43133027,0.00030563,7]
[423382612,1780069849000,-606.76483683,0.00030563,7]
[423382613,1780069849000,-591.43456747,0.00030563,7]
[423382609,1780069849000,-495.07104896,0.00030563,7]
[423382608,1780069849000,-563.2557031,0.00030563,7]
[423382610,1780069849000,-231.39465645,0.00030563,2]
[423382611,1780069849000,-305.10758997,0.00030563,7]
[423382615,1780069849000,-482.26722397,0.00030563,7]
[423382616,1780069849000,-511.2354123,0.00030563,7]
[423382614,1780069849000,-616.67214822,0.00030563,7]
[423382617,1780069849000,-451.49394837,0.00030563,7]
[423382619,1780069849000,-456.85404581,0.00030587,7]
[423382621,1780069849000,-617.43178064,0.00030587,7]
[423382592,1780069849000,-471.63900896,0.00030563,7]
[423382591,1780069849000,-594.08338558,0.00030563,7]
[423382618,1780069849000,-458.24178159,0.00030563,7]
[423382589,1780069849000,-470.86291478,0.00030563,7]
[423382586,1780069849000,-508.23205799,0.00030563,7]
[423382564,1780069849000,-1272.0,0.0003052,2]
[423382562,1780069849000,-3549.0,0.0003052,2]
[423382566,1780069849000,-150.0,0.0003052,2]
[423382561,1780069849000,-1356.0,0.0003052,2]
[423382563,1780069849000,-525.0,0.0003052,2]
[423382567,1780069849000,-277.0,0.0003052,2]
[423382570,1780069849000,-418.0,0.0003052,2]
[423382568,1780069849000,-150.0,0.0003052,2]
[423382575,1780069849000,-523.53435905,0.00030536,7]
[423382571,1780069849000,-166.766,0.0003052,2]
[423382620,1780069849000,-348.95046792,0.00030587,7]
[423382574,1780069849000,-519.52672892,0.00030536,7]
[423382573,1780069849000,-3774.363,0.0003052,2]
[423382558,1780069849000,-152.0,0.00030482,7]
[423382572,1780069849000,-150.753,0.0003052,2]
[423382569,1780069849000,-150.353,0.0003052,2]
[423382588,1780069849000,-152.41257321,0.00030563,7]
[423382587,1780069849000,-374.75419891,0.00030563,7]
[423382585,1780069849000,-482.18453983,0.00030563,7]
[423382584,1780069849000,-352.94021178,0.00030563,7]
[423382583,1780069849000,-207.00428148,0.00030563,7]
[423382590,1780069849000,-275.68661596,0.00030563,7]
[423382582,1780069849000,-245.72979678,0.00030563,7]
[423382581,1780069849000,-237.53804636,0.00030536,2]
[423382577,1780069849000,-541.66206089,0.00030536,7]
[423382576,1780069849000,-639.04099063,0.00030536,7]
[423382580,1780069849000,-205.33926325,0.00030536,7]
[423382579,1780069849000,-505.78078822,0.00030536,7]
[423382578,1780069849000,-201.59689684,0.00030536,7]
[423382653,1780069850000,-194.97431839,0.00030607,7]
[423382652,1780069850000,-154.37760921,0.00030607,7]
[423382655,1780069850000,-463.70757908,0.00030607,7]
[423382657,1780069850000,-243.4795262,0.00030607,7]
[423382667,1780069850000,-460.32393047,0.00030607,7]
[423382658,1780069850000,-293.91397963,0.00030607,7]
[423382656,1780069850000,-302.25343837,0.00030607,7]
[423382659,1780069850000,-152.29490688,0.00030607,7]
[423382660,1780069850000,-617.68163511,0.00030607,7]
[423382666,1780069850000,-628.85346886,0.00030607,7]
[423382664,1780069850000,-516.54138783,0.00030607,7]
[423382662,1780069850000,-577.58768195,0.00030607,7]
[423382669,1780069850000,-337.38000991,0.00030607,7]
[423382661,1780069850000,-361.3334021,0.00030607,5]
[423382663,1780069850000,-597.32122579,0.00030607,7]
[423382668,1780069850000,-228.99814346,0.00030607,7]
[423382670,1780069850000,-492.48209499,0.00030607,7]
[423382654,1780069850000,-475.86844961,0.00030607,7]
[423382671,1780069850000,-620.38059766,0.00030607,5]
[423382673,1780069850000,-884.0,0.00030629,7]
[423382676,1780069850000,-185.0,0.00030686,30]
[423382672,1780069850000,-573.35933622,0.00030607,7]
[423382677,1780069850000,-1418.0,0.00030686,30]
[423382679,1780069850000,-506.0,0.00030699,30]
[423382678,1780069850000,-902.0,0.00030686,30]
[423382675,1780069850000,-354.0,0.00030686,30]
[423382665,1780069850000,-155.22549886,0.00030607,7]
[423382650,1780069850000,-538.63972433,0.00030607,7]
[423382645,1780069850000,-463.58137057,0.00030607,7]
[423382651,1780069850000,-538.37520152,0.00030607,7]
[423382674,1780069850000,-303.0,0.00030686,30]
[423382629,1780069850000,-626.85981163,0.00030607,2]
[423382624,1780069850000,-165.50411573,0.00030587,7]
[423382623,1780069850000,-370.54361442,0.00030587,2]
[423382626,1780069850000,-622.37965304,0.00030587,7]
[423382627,1780069850000,-484.99468729,0.00030607,7]
[423382622,1780069850000,-1123.79139029,0.00030587,7]
[423382625,1780069850000,-162.01615878,0.00030587,7]
[423382628,1780069850000,-150.7777502,0.00030607,7]
[423382630,1780069850000,-229.86533174,0.00030607,7]
[423382640,1780069850000,-204.48231542,0.00030607,7]
[423382632,1780069850000,-202.31752816,0.00030607,7]
[423382648,1780069850000,-203.0969762,0.00030607,7]
[423382638,1780069850000,-292.23308746,0.00030607,7]
[423382641,1780069850000,-280.93761709,0.00030607,2]
[423382642,1780069850000,-293.88995501,0.00030607,2]
[423382633,1780069850000,-624.35388764,0.00030607,7]
[423382637,1780069850000,-466.40853733,0.00030607,7]
[423382636,1780069850000,-166.89255691,0.00030607,7]
[423382643,1780069850000,-476.28299495,0.00030607,7]
[423382639,1780069850000,-162.99682541,0.00030607,7]
[423382634,1780069850000,-484.91407263,0.00030607,7]
[423382646,1780069850000,-652.33601494,0.00030607,7]
[423382649,1780069850000,-508.2097044,0.00030607,7]
[423382644,1780069850000,-440.37684611,0.00030607,7]
[423382647,1780069850000,-450.92568996,0.00030607,7]
[423382635,1780069850000,-628.49184335,0.00030607,7]
[423382631,1780069850000,-206.16180461,0.00030607,7]
[423382680,1780069850000,-430.0,0.00030699,30]
[423382681,1780069850000,-1489.0,0.00030699,30]
[423382709,1780069850000,-160.49736034,0.00031127,7]
[423382715,1780069850000,-164.96870002,0.00031127,2]
[423382713,1780069850000,-160.42851659,0.00031127,7]
[423382712,1780069850000,-160.42852072,0.00031127,7]
[423382710,1780069850000,-165.12243611,0.00031127,7]
[423382719,1780069850000,-384.50021525,0.00031127,7]
[423382718,1780069850000,-167.50753875,0.00031127,7]
[423382720,1780069850000,-411.50549021,0.00031127,7]
[423382722,1780069850000,-212.76995561,0.00031127,7]